Cogmind - Beta 9.1 @@@ ROGUE MODE // 2019.11.09 @ 19:11:04 Player: PlasticHeart Result: Destroyed by Y-45 Defender with Heavy Assault Rifle Performance ------------- Evolutions (1) 500 Regions Visited (2) 400 Robots Destroyed (37) 185 Value Destroyed (787) 787 Prototype IDs (2) 40 Alien Tech Used (0) 0 Bonus (243) 243 TOTAL SCORE: 2155 Bonus ------- Pacifist 200 High Alert Combat Kills 43 Cogmind --------- Core Integrity 0/400 Matter 287/300 Energy 280/280 System Corruption 0% Temperature Cool (9) Location -9/Materials Parts ------- Power (1) Heavy Ion Engine Propulsion (2) Compact Wheel Utility (4) Small Storage Unit Large Storage Unit Large Storage Unit High-capacity Storage Unit Weapon (2) Improved Assault Rifle Improved Assault Rifle Inventory (26) Light Ion Engine Faulty Heavy Ion Engine Small Storage Unit Medium Storage Unit Large Storage Unit Light Armor Plating Hacking Suite Light Assault Rifle Heavy Assault Rifle Rocket Launcher Peak State ------------ Power Heavy Ion Engine Propulsion Compact Wheel Compact Wheel Utility Small Storage Unit Large Storage Unit Large Storage Unit High-capacity Storage Unit Weapon Improved Assault Rifle Improved Assault Rifle Inventory Light Ion Engine Small Storage Unit Medium Storage Unit Large Storage Unit Light Armor Plating Hacking Suite Light Assault Rifle Rocket Launcher [Rating: 16] Favorites ----------- Power Ion Engine Engine Ion Engine Propulsion Compact Wheel Leg Improved Aluminum Leg Wheel Compact Wheel Utility Large Storage Unit Device Heat Sink Storage Large Storage Unit Weapon Small Laser Energy Gun Small Laser Ballistic Gun Improved Assault Rifle Build | -11 -10 -9 ------- Run | Scr Mat Mat Slots Evolved 2 | . . 2 Power . | . . . Propulsion . | . . . Utility 2 | . . 2 Weapon . | . . . Parts Attached 33 | 6 2 25 Power 5 | 1 . 4 Engine 5 | 1 . 4 Core . | . . . Reactor . | . . . Propulsion 7 | 2 . 5 Treads . | . . . Leg 1 | . . 1 Wheel 6 | 2 . 4 Hover . | . . . Flight . | . . . Utility 8 | 1 2 5 Device 1 | . . 1 Storage 7 | 1 2 4 Processor . | . . . Hackware . | . . . Protection . | . . . Artifact . | . . . Weapon 13 | 2 . 11 Energy Gun 8 | 2 . 6 Energy Cannon . | . . . Ballistic Gun 5 | . . 5 Ballistic Cannon . | . . . Launcher . | . . . Special Weapon . | . . . Impact Weapon . | . . . Slashing Weapon . | . . . Piercing Weapon . | . . . Special Melee Weapon . | . . . Unidentified Prototypes 2 | . . 2 Parts Lost 18 | . . 18 Power 2 | . . 2 Propulsion 5 | . . 5 Utility 1 | . . 1 Weapon 10 | . . 10 Highest Loss Streak 9 | . . 9 Average Slot Usage (%) 93 | . 95 93 Engine 10 | . 14 10 Leg 2 | . . 2 Wheel 19 | . 28 17 Device 2 | . . 3 Storage 35 | . 23 38 Energy Gun 13 | . 28 9 Ballistic Gun 8 | . . 10 Naked Turns . | . . . Heaviest Build 82 | 11 55 82 Greatest Support 32 | 26 26 32 Greatest Overweight (x) 22 | 1 2 22 Average Overweight (x) 2 | . 1 2 Largest Inventory Capacity 26 | 6 18 26 Average Capacity 21 | 5 14 24 Most Carried 16 | 6 8 16 Average Carried 9 | 2 6 11 Final Capacity 26 | 6 18 26 Final Carried 10 | 2 8 10 Class Distribution -------------------- 70% | Hauler-Mutant 29% | Mutant Dominant Class ---------------- Mutant | -10/Materials Hauler-Mutant | -9/Materials Resources | -11 -10 -9 ----------- Run | Scr Mat Mat Matter Collected 719 | 215 . 504 Remotely . | . . . Salvage Created 1163 | . . 1163 Parts 94 | . . 94 Haulers Intercepted 3 | . . 3 Recyclers Shooed . | . . . Parts Field Recycled . | . . . Retrieved Matter . | . . . Parts Self-Destructed . | . . . Prevented . | . . . Kills | -11 -10 -9 ------- Run | Scr Mat Mat Combat Hostiles Destroyed 27 | . . 27 Guns 20 | . . 20 AOE 6 | . . 6 Classes Destroyed 8 | . . 8 Worker 1 | . . 1 Hauler 3 | . . 3 Recycler 2 | . . 2 Operator 3 | . . 3 Watcher 1 | . . 1 Swarmer 12 | . . 12 Grunt 11 | . . 11 Sentry 4 | . . 4 Best Kill Streak 7 | . . 7 Combat Bots Only 5 | . . 5 Max Kills in Single Turn 7 | . . 7 Gunslinging 1 | . . 1 Exploded 5 | . . 5 Melee . | . . . Uniques/NPCs Destroyed . | . . . Combat | -11 -10 -9 -------- Run | Scr Mat Mat Damage Taken 1963 | . . 1963 Core 400 | . . 400 Absorbed by Shields . | . . . Core Remaining (%) 100 | 100 100 . Volleys Fired 83 | . 2 81 Largest 2 | . 2 2 Hottest 90 | . 80 90 Shots Fired 151 | . 4 147 Gun 151 | . 4 147 Cannon . | . . . Launcher . | . . . Special . | . . . Kinetic 89 | . . 89 Thermal 16 | . 4 12 Explosive . | . . . Electromagnetic 46 | . . 46 Robot Hit Streak 10 | . 1 10 Robot Miss Streak 5 | . 3 5 Penetration Max . | . . . Secondary Targets 6 | . . 6 Max Gunslinging Chain 1 | . . 1 Shots Hit Robots 93 | . 1 92 Core Hits 46 | . . 46 Critical Hits . | . . . Critical Kills . | . . . Critical Parts Destroyed . | . . . Melee Attacks . | . . . Impact . | . . . Slashing . | . . . Piercing . | . . . Sneak Attacks . | . . . Combat Hostiles . | . . . Follow-up Attacks . | . . . Damage Inflicted 2154 | . 12 2142 Guns 1354 | . 12 1342 Cannons . | . . . Explosions 800 | . . 800 Melee . | . . . Ramming . | . . . Kinetic 880 | . . 880 Thermal 908 | . 12 896 Explosive . | . . . Electromagnetic 366 | . . 366 Impact . | . . . Slashing . | . . . Piercing . | . . . Highest Corruption . | . . . Average Corruption . | . . . Corruption Purged . | . . . Overload Shots . | . . . Overflow Damage 90 | . . 90 Projectiles . | . . . Explosions 90 | . . 90 Melee . | . . . Knockbacks . | . . . Impact . | . . . Kinetic . | . . . Secondary . | . . . Self-Inflicted Damage 211 | . . 211 Shots 3 | . . 3 Rammed . | . . . Targets Rammed . | . . . Kicked . | . . . Crushed . | . . . Highest Temperature 158 | . 18 158 Average Temperature 60 | . 12 65 Received Heat Transfer 480 | . . 480 Siege Activations . | . . . Robots Corrupted 1 | . . 1 Combat Hostiles 1 | . . 1 Parts Fried 1 | . . 1 Impact Corruptions . | . . . Robots Melted . | . . . Combat Hostiles . | . . . Parts Melted 1 | . . 1 Heat Transferred 750 | . 25 725 Parts Sabotaged . | . . . Parts Stolen . | . . . Parts Stripped . | . . . Power Chain Reactions 1 | . . 1 Missiles Intercepted . | . . . Alert | -11 -10 -9 ------- Run | Scr Mat Mat Peak Influence 478 | . 52 478 Average Influence 211 | . 31 275 Maximum Alert Level 2 | . . 2 Low Security (%) 50 | . . . Level 1 26 | . . . Level 2 23 | . . . Level 3 . | . . . Level 4 . | . . . Level 5 . | . . . High Security . | . . . Max Security . | . . . Squads Dispatched 4 | . . 4 Investigation . | . . . Extermination . | . . . Reinforcement 4 | . . 4 Assault . | . . . Garrison . | . . . Intercept . | . . . Construction Impeded . | . . . Haulers Reinforced . | . . . Stealth | -11 -10 -9 --------- Run | Scr Mat Mat Distress Signals 5 | . . 5 Communications Jammed . | . . . Distress Signals . | . . . Times Spotted 44 | . 2 42 Peak Tracking Total 9 | . 2 9 Tactical Retreats 1 | . . 1 Traps | -11 -10 -9 ------- Run | Scr Mat Mat Traps Triggered . | . . . Indirectly . | . . . Trap Hack Attempts . | . . . Triggered . | . . . Disarmed . | . . . Reprogrammed . | . . . Reused . | . . . Traps Extracted . | . . . Installed . | . . . Triggered . | . . . Machines | -11 -10 -9 ---------- Run | Scr Mat Mat Machines Disabled 3 | . . 3 Max in Single Turn 2 | . . 2 Machines Sabotaged . | . . . Garrisons Compromised . | . . . Overloaded Fab Kills . | . . . Fab Network Shutdowns . | . . . Hacking | -11 -10 -9 --------- Run | Scr Mat Mat Machines Accessed 5 | . 3 2 Terminals 5 | . 3 2 Fabricators . | . . . Repair Stations . | . . . Recycling Units . | . . . Scanalyzers . | . . . Garrison Access . | . . . Total Hacks 12 | . 8 4 Successful 6 | . 2 4 Failed 6 | . 6 . Catastrophic 1 | . 1 . Database Lockouts . | . . . Manual 8 | . 6 2 Terminals 12 | . 8 4 Fabricators . | . . . Repair Stations . | . . . Recycling Units . | . . . Scanalyzers . | . . . Garrison Access . | . . . Terminal Hacks 4 | . 2 2 Locate Traps 2 | . 1 1 Recall Reinforcements 1 | . 1 . Zone Layout 1 | . . 1 Fabricator Hacks . | . . . Repair Station Hacks . | . . . Recycling Unit Hacks . | . . . Scanalyzer . | . . . Garrison Access Hacks . | . . . Unauthorized Hacks 4 | . . 4 Terminals 2 | . . 2 Track 1 | . . 1 Botnet 1 | . . 1 Fabricators . | . . . Repair Stations . | . . . Recycling Units . | . . . Scanalyzers . | . . . Garrison Access . | . . . Data Cores Recovered . | . . . Used . | . . . Hacking Detections 4 | . 2 2 Full Trace Events 1 | . 1 . Feedback Events . | . . . Feedback Blocked . | . . . Robot Schematics Acquired . | . . . Robots Built . | . . . Matter . | . . . Time . | . . . Total Robot Build Rating . | . . . Part Schematics Acquired . | . . . Parts Built . | . . . Matter . | . . . Time . | . . . Total Part Build Rating . | . . . Parts Repaired . | . . . Time . | . . . Parts Recycled . | . . . Recycled Matter . | . . . Retrieved Matter . | . . . Retrieved Components . | . . . Parts Scanalyzed . | . . . Part Schematics Acquired . | . . . Parts Damaged . | . . . Bothacking | -11 -10 -9 ------------ Run | Scr Mat Mat Used RIF Installer . | . . . Robots Hacked . | . . . Non-combat . | . . . Combat . | . . . Robot Hacks Applied . | . . . Relay Couplers Released . | . . . Robots Rewired . | . . . Allies Hacked . | . . . Hacks Repelled . | . . . Allies | -11 -10 -9 -------- Run | Scr Mat Mat Total Allies . | . . . Largest Group . | . . . Highest-Rated Group . | . . . Highest-Rated Ally . | . . . Total Orders . | . . . Ally Attacks . | . . . Total Damage . | . . . Kills . | . . . Allies Corrupted . | . . . Allies Melted . | . . . Intel | -11 -10 -9 ------- Run | Scr Mat Mat Robot Analysis Total . | . . . Derelict Logs Recovered . | . . . Drone Launches . | . . . Drone Recoveries . | . . . Exploration | -11 -10 -9 ------------- Run | Scr Mat Mat Turns Passed 879 | 48 174 657 Spaces Moved 445 | 49 156 240 Core 34 | 33 . 1 Treads . | . . . Legs 31 | . . 31 Wheels 380 | 16 156 208 Hover . | . . . Flight . | . . . Fastest Speed 50 | 50 90 110 Average Speed 120 | 72 103 142 Slowest Speed 1150 | 100 110 1150 Overloaded Moves . | . . . Propulsion Burnouts . | . . . Robots Hopped . | . . . Cave-ins Triggered . | . . . Exploration Rate (%) 23 | 4 26 40 Regions Visited 2 Branch Regions . Pre-discovered Areas . | . . . Known Exits Taken . | . . . Unknown Exits Taken 2 | 1 1 . Scrap Searched . | . . . Spaces Dug . | . . . Terrain Destroyed 49 | . . 49 Melee . | . . . Projectile . | . . . AOE 49 | . . 49 Actions | -11 -10 -9 --------- Run | Scr Mat Mat Total 633 | 60 164 409 Wait 38 | . . 38 Move 443 | 48 155 240 Hop . | . . . Pick Up 32 | 6 5 21 Fast Attach 5 | 2 1 2 Attach 24 | 4 . 20 Detach . | . . . Swap 4 | . 1 3 Drop 4 | . . 4 Fire 83 | . 2 81 Melee . | . . . Ram . | . . . Kick . | . . . Crush . | . . . Escape Stasis . | . . . Rewire . | . . . Trap . | . . . Miscellaneous . | . . . Route ------- -11/Scrapyard -10/Materials -9/Materials (discovered 1 exit: [*Min]) History --------- Turn | Location | Event 21 | -11/Scrapyard | Discovered new exit (range 15) 49 | -11/Scrapyard | Entered Materials 211 | -10/Materials | Discovered new exit (range 9) 223 | -10/Materials | Entered another Materials area 223 | -9/Materials | Evolved 2 slots: Utility x2 498 | -9/Materials | Core integrity fell below 50% 528 | -9/Materials | Lost 9 parts (1p2n1u5w) 569 | -9/Materials | Build established: Hauler-Mutant 589 | -9/Materials | Discovered new exit (range 16) 743 | -9/Materials | Core integrity fell below 20% 812 | -9/Materials | Lost 4 parts (1p3w) 880 | -9/Materials | Destroyed by Y-45 Defender with Heavy Assault Rifle Last Messages --------------- 00823_ Acquired 22 matter. 00825_ Connecting with Terminal... >>Trojan(Botnet) Trojan loaded successfully. Testing... Terminal linked with 0 systems. Awaiting botnet instructions. >>Trojan(Track) Trojan loaded successfully. Testing... Tracking enabled and active. 00831_ K-01 Serf collects debris. 00838_ K-01 Serf cleans the Integration Channel. 00841_ K-01 Serf collects debris. 00865_ Y-45 Defender destroyed. 00866_ ALERT: Hostiles spotted, dispatching reinforcements to Terminal M002. 00868_ Acquired 6 matter. 00871_ Acquired Hvy. Assault Rifle. 00874_ Com. Wheel destroyed. Map ----- +----------------------------------------------------+ | #" !"| "# ## ! =*#%=* = T#????????????? | | ##/##" "## ### ! %!#=*! "#????????????? | | ! # k #????????????? | | = % < =% ##########???????????? | | * !%! % ### #?? #???????????? | | ##+## ##+########## ##? #???????????? | | ? ######### [[ #???# # #???????????? | | ? ????????# % #???# # #???????????? | | #???????# """ #???# rT + #???????????? | | #???????# """ #???# # #???????????? | | #???????# """ #???# # #???????????? | | #???????# #???## ##? #???????????? | | #####???????##+#####????# #?? #???????????? | | ?????????????# ?????????# #??? #???????????? | | ?????????????# ?????????# #??? #???????????? | | ?????????????# ?????????# #?########???????????? | | ????????????????????????# # #?????????????? | | ????????????????????????# # """ #?????????????? | | ????????????????????????# + "R" #?????????????? | | ????????????????????????# # " " #?????????????? | | ????????????????????????# # #?????????????? | | ????????????????????????# #? #?????????????? | | ???????????????????##+??# #?######?????????????? | | ?????????????#k##### ?# #????????????????????? | | ?????????????# [ !## #????????????????????? | | ???????????????????# =!%[@ #????????????????????? | | ???????????????????##+####Y##????????????????????? | | ????????????????????????? ????????????????????? | | ????????????????????????? ???????????????????? | | ???????????????????????? ??????????????????? | | ???????????????????????? ????????????????? | | ??????????????????????? ! #???????????????? | | ??????????????????????? #??????????????? | | ??????????????????????##/##########??????????????? | | ???????????????????????? ????????????????????????? | | ???????????????????????# ????????????????????????? | | ???????????????????????+ ????????????????????????? | | ???????????????????????# ????????????????????????? | | ???????????????????????#?????????????????????????? | | ?????????????????????????????????????????????????? | | ?????????????????????????????????????????????????? | | ?????????????????????????????????????????????????? | | ?????????????????????????????????????????????????? | | ?????????????????????????????????????????????????? | | ?????????????????????????????????????????????????? | | ?????????????????????????????????????????????????? | | ?????????????????????????????????????????????????? | | ?????????????????????????????????????????????????? | | ?????????????????????????????????????????????????? | | ?????????????????????????????????????????????????? | +----------------------------------------------------+ Best States ------------- Heat Dissipation 38 Energy Generation 14 Energy Capacity 280 Matter Stores 300 Matter Capacity 300 Sight Range 16 Terrain Scan Density 10 Evasion (%) 50 Item Schematics ----------------- None Robot Schematics ------------------ None Fabricated ------------ Nothing Alien Tech Used ----------------- None Achievements -------------- None Challenges ------------ None Game ------ Seed UltimatePoweredChainsword Manual? 0 Play Time 00:14:37 Cumulative 614.5 hours Start 2019.11.09 @ 19:02:32 End 2019.11.09 @ 19:11:04 Sessions 1 Manual Loads 0 Difficulty Rogue Special Mode None Game No. 351 Rogue 351 Adventurer 0 Explorer 0 Win Type - Total 50 Types 28/2/12/5/1/1/1 Lore% 89 Gallery% 83 Achievement% 66 Wizard Run 0 Options --------- ASCII 0 Keyboard 0 Movement Mouse Keybinds 0 Fullscreen 0 Font 32/SmallcapsGlow Map View 76x50 Tactical HUD 1 Map Filters NONE Filters NONE Steam 0 RUN: ec5ed2a8-8b77-4492-b39a-83c795fb3054